bitfinex/quotes_SOLUSD_20241008
["timestamp","ask_amount","ask_price","bid_price","bid_amount"]
[1728352098040,1.72094004,145.31,145.24,17.2119]
[1728352098252,6.8814,145.32,145.27,6.8836]
[1728352098452,1.72058679,145.37,145.28,1.37646943]
[1728352098660,6.8808,145.33,145.28,6.8828]
[1728352099864,0.12549,145.28,145.24,6.885]
[1728352100172,0.12549,145.28,145.24,24.0972]
[1728352100173,7.00879,145.28,145.24,24.0972]
[1728352100372,0.12549,145.28,145.25,6.8846]
[1728352100577,0.12549,145.29,145.25,6.8846]
[1728352100878,1.7208029,145.28,145.21,17.2158]
[1728352101080,0.12549,145.25,145.21,24.1023]
[1728352101281,0.12549,145.25,145.22,8.26280609]
[1728352101659,0.12549,145.26,145.22,8.26280609]
[1728352102261,0.12549,145.26,145.22,6.8859]
[1728352103886,1.72113225,145.29,145.2,50.0]
[1728352103887,0.12549,145.28,145.23,1.3769074]
[1728352104065,0.25098,145.29,145.25,6.8846]
[1728352104261,0.25098,145.29,145.26,1.37668186]
[1728352104461,0.12549,145.27,145.24,6.885]
[1728352105375,0.12549,145.28,145.25,1.37672854]
[1728352105561,7.00879,145.28,145.24,6.885]
[1728352105862,7.00879,145.28,145.25,1.3767281]
[1728352106267,0.12549,145.28,145.25,1.3767281]
[1728352106783,6.8828,145.29,145.25,6.8844]
[1728352107087,8.72950966,145.28,145.24,6.8849]
[1728352107664,8.72950966,145.28,145.23,17.2135]
[1728352107879,0.12549,145.26,145.23,24.0987]
[1728352108179,6.8848,145.25,145.21,6.8862]
[1728352109165,0.12549,145.23,145.18,50.0]
[1728352109367,7.01119,145.23,145.19,6.8874]
[1728352109594,6.8863,145.22,145.18,6.8879]
[1728352109770,7.01119,145.23,145.18,6.8879]
[1728352110887,7.01119,145.23,145.19,6.8874]
[1728352112694,7.01119,145.23,145.18,6.8878]
[1728352112983,0.12549,145.21,145.18,6.8878]
[1728352114075,0.12549,145.22,145.19,8.26469828]
[1728352114269,0.12549,145.24,145.2,6.8866]
[1728352114594,7.01079,145.24,145.19,24.1051]
[1728352114893,7.01079,145.24,145.2,6.8869]
[1728352119178,1.72137047,145.23,145.19,24.1054]
[1728352119377,0.12549,145.22,145.19,17.2181]
[1728352119591,6.8866,145.21,145.17,6.8883]
[1728352119890,7.01199,145.22,145.17,6.8884]
[1728352120475,0.12549,145.22,145.17,6.8884]
[1728352120793,6.8866,145.21,145.17,10.76868701]
[1728352121175,6.8866,145.21,145.17,6.8884]
[1728352121880,0.12549,145.18,145.15,0.824818]
[1728352123997,0.12549,145.18,145.15,7.714118]
[1728352124296,0.12549,145.18,145.16,1.37758219]
[1728352124994,6.8871,145.2,145.16,8.26638219]
[1728352125177,1.72201133,145.22,145.17,6.8881]
[1728352125381,0.12549,145.21,145.18,1.37739859]
[1728352125889,1.72174804,145.26,145.2,6.8866]
[1728352126096,6.8856,145.23,145.19,24.1057]
[1728352126298,6.8856,145.23,145.19,17.2184]
[1728352126513,1.72142012,145.24,145.19,17.2184]
[1728352126681,24.46700715,145.25,145.2,6.8869]
[1728352127504,6.8851,145.24,145.2,6.8869]
[1728352128201,0.12549,145.23,145.2,6.8869]
[1728352129191,0.12549,145.23,145.19,24.1058]
[1728352129901,7.01119,145.23,145.19,24.1058]
[1728352136909,0.12549,145.23,145.19,17.2184]
[1728352137113,1.84712544,145.23,145.17,22.7736]
[1728352137304,0.12549,145.2,145.17,10.7660585]
[1728352137490,0.12549,145.2,145.17,6.8883]
[1728352137686,0.12549,145.2,145.17,10.76657047]
[1728352137893,0.12549,145.21,145.17,3.87834385]
[1728352138193,7.01209,145.21,145.17,6.8884]
[1728352138395,7.01209,145.21,145.17,10.76674385]
[1728352138802,0.12549,145.21,145.18,6.8879]
[1728352139113,0.12549,145.21,145.18,8.26527686]
[1728352139310,0.12549,145.21,145.18,6.8879]
[1728352139517,0.12549,145.21,145.17,10.76664385]
[1728352140013,0.12549,145.21,145.18,1.37737794]
[1728352140204,0.12549,145.21,145.18,6.8879]
[1728352141215,0.12549,145.21,145.17,10.76670623]
[1728352141603,6.8874,145.2,145.17,3.87850623]
[1728352141806,6.8874,145.2,145.16,24.1102]
[1728352142512,21.72180372,145.24,145.18,17.2195]
[1728352142694,6.8852,145.24,145.2,6.8869]
[1728352142998,1.72145873,145.23,145.18,17.2195]
[1728352143204,1.72162963,145.24,145.18,17.2195]
[1728352143594,6.8869,145.21,145.15,52.492918]
[1728352143816,6.8869,145.21,145.16,6.8888]
[1728352144719,6.8869,145.21,145.17,6.8884]
[1728352144905,0.25098,145.23,145.17,6.8884]
[1728352145107,0.12549,145.21,145.17,6.8884]
[1728352145917,0.12549,145.21,145.18,1.37732457]
[1728352146421,6.8856,145.23,145.18,1.37732635]
[1728352146602,0.12549,145.22,145.19,6.8872]
[1728352146799,15.8606,145.25,145.2,1.37714632]
[1728352147007,12.9096,145.27,145.22,6.8857]
[1728352147203,6.884,145.27,145.23,1.37689672]
[1728352147416,1.7211209,145.28,145.22,6.8857]
[1728352147721,6.8848,145.25,145.21,24.1023]
[1728352147926,6.8852,145.24,145.2,6.8869]
[1728352148301,0.25098,145.27,145.2,17.2167]
[1728352148627,1.7211209,145.28,145.23,6.8855]
[1728352148799,8.6044209,145.28,145.24,1.3767969]
[1728352149421,1.7211209,145.28,145.23,6.8855]
[1728352149610,1.7211209,145.28,145.22,17.2148]
[1728352149611,6.8845,145.26,145.22,17.2148]
[1728352149820,6.8846,145.25,145.22,17.2148]
[1728352150206,1.7211209,145.28,145.22,17.2148]
[1728352150511,0.12549,145.26,145.23,6.8855]
[1728352151127,0.12549,145.27,145.23,6.8855]
[1728352152027,7.00929,145.27,145.23,6.8855]
[1728352154203,6.8842,145.26,145.22,24.1008]
[1728352156127,0.12549,145.27,145.22,24.1008]
[1728352156329,7.00929,145.27,145.22,24.1008]
[1728352156922,20.0,145.32,145.24,17.2121]
[1728352157128,6.8846,145.25,145.21,3.88320423]
[1728352157323,6.8851,145.24,145.21,3.88215325]
[1728352157603,6.8851,145.24,145.2,22.2115]
[1728352157915,6.8851,145.24,145.2,26.09461534]
[1728352158233,6.8851,145.24,145.2,22.2115]
[1728352158234,0.12549,145.23,145.2,22.2115]
[1728352159016,18.28598059,145.28,145.21,8.26350157]
[1728352159312,6.8837,145.27,145.21,1.37710157]
[1728352159512,6.8837,145.27,145.23,6.8855]
[1728352159916,6.8837,145.27,145.24,1.37683564]
[1728352160729,0.12549,145.26,145.24,1.37683564]
[1728352161631,0.12549,145.26,145.23,6.8855]
[1728352161830,0.12549,145.27,145.24,1.37683565]
[1728352162026,6.8838,145.27,145.23,6.8855]
[1728352162710,0.12549,145.26,145.23,6.8855]
[1728352164626,23.776884,145.3,145.22,67.2145]
[1728352164931,6.8837,145.27,145.23,6.8855]
[1728352169446,1.72095432,145.31,145.24,18.58876345]
[1728352169745,6.8816,145.32,145.27,6.8833]
[1728352170037,6.8821,145.31,145.27,6.8833]
[1728352171114,0.12549,145.3,145.27,6.8833]
[1728352171320,6.8814,145.32,145.28,8.25947325]
[1728352172627,0.12549,145.31,145.28,6.8831]
[1728352172833,7.00739,145.31,145.26,89.9648]
[1728352173839,7.00739,145.31,145.27,6.8834]
[1728352174946,6.8825,145.3,145.26,39.9652]
[1728352176125,6.8825,145.3,145.26,33.0811]
[1728352176939,0.12549,145.32,145.26,33.0811]
[1728352177149,0.12549,145.3,145.27,8.26014827]
[1728352177916,0.12549,145.3,145.26,39.9651]
[1728352178935,1.84607494,145.3,145.23,23.7368]
[1728352180038,6.8834,145.28,145.24,6.885]
[1728352181653,0.12549,145.3,145.27,6.8833]
[1728352181838,0.12549,145.31,145.28,1.37638478]
[1728352182347,7.00739,145.31,145.28,1.37638478]
[1728352182734,7.00739,145.31,145.27,6.8833]
[1728352182956,7.00739,145.31,145.26,6.884]
[1728352184351,0.12549,145.31,145.25,17.2112]
[1728352184652,6.8834,145.28,145.25,17.2112]
[1728352186654,21.84622413,145.31,145.25,17.2112]
[1728352186842,6.8829,145.29,145.25,24.0957]
[1728352187654,6.8829,145.29,145.22,100.5797]
[1728352187655,7.00929,145.27,145.23,6.8854]
[1728352189051,6.8842,145.26,145.22,90.2519]
[1728352189241,6.8842,145.26,145.22,40.2519]
[1728352190450,6.8842,145.26,145.22,17.2145]
[1728352192257,6.8842,145.26,145.22,24.1005]
[1728352192636,0.12549,145.28,145.19,73.7944]
[1728352192844,6.8852,145.24,145.2,10.77632801]
[1728352193049,6.8852,145.24,145.21,3.88972801]
[1728352193358,0.25098,145.28,145.21,3.88972801]
[1728352193558,6.8848,145.25,145.21,3.88972801]
[1728352193968,0.25098,145.28,145.22,6.8859]
[1728352194148,6.8842,145.26,145.22,6.8859]
[1728352194345,6.8837,145.27,145.23,6.8856]
[1728352194663,0.12549,145.26,145.23,6.8856]
[1728352195160,0.12549,145.26,145.22,6.8859]
[1728352201146,0.12549,145.26,145.21,17.216]
[1728352201147,7.00979,145.26,145.21,17.216]
[1728352201350,7.00979,145.26,145.21,24.1024]
[1728352201850,7.00969,145.27,145.22,6.8857]
[1728352202054,6.8849,145.25,145.21,24.1024]
[1728352202253,0.12549,145.24,145.19,15.7526]
[1728352202470,7.01079,145.24,145.2,3.89019768]
[1728352202649,6.8857,145.23,145.18,24.1066]
[1728352202847,7.01159,145.22,145.19,3.89050584]
[1728352203157,7.01189,145.22,145.18,24.1066]
[1728352203352,6.8867,145.21,145.18,17.2191]
[1728352203549,0.12549,145.2,145.17,6.8883]
[1728352203759,0.12549,145.2,145.15,38.73692876]
[1728352203760,0.12549,145.2,145.16,3.89182424]
[1728352204066,0.12549,145.2,145.17,8.26547176]
[1728352204249,0.12549,145.21,145.17,12.15716131]
[1728352204450,0.12549,145.22,145.17,5.26906131]
[1728352204655,0.12549,145.22,145.16,6.8888]
[1728352204656,0.25098,145.21,145.16,3.89168955]
[1728352204954,0.25098,145.21,145.16,1.37748906]
[1728352204955,0.12549,145.19,145.16,1.37748906]
[1728352205270,7.01209,145.21,145.16,6.8885]
[1728352205861,6.8871,145.2,145.16,6.8885]
[1728352206474,6.8876,145.19,145.15,24.936818]
[1728352206648,6.8871,145.2,145.15,24.936818]
[1728352207142,6.8871,145.2,145.15,18.047518]
[1728352207452,6.8871,145.2,145.16,6.8888]
[1728352208654,6.8871,145.2,145.17,1.377403]
[1728352208860,1.72175496,145.23,145.17,17.2206]
[1728352209059,21.72149016,145.24,145.17,17.2206]
[1728352209478,22.0387,145.25,145.19,17.2179]
[1728352209780,6.8838,145.27,145.23,6.8855]
[1728352209954,1.72146518,145.28,145.21,17.2156]
[1728352210266,6.8842,145.26,145.22,6.8859]
[1728352210570,1.72146518,145.28,145.18,56.5689]
[1728352210755,1.72134662,145.27,145.18,67.2195]
[1728352211072,0.12549,145.23,145.19,6.8873]
[1728352211302,0.12549,145.25,145.21,6.8865]
[1728352212190,0.12549,145.26,145.2,24.1039]
[1728352212375,6.8852,145.24,145.2,24.1039]
[1728352212870,6.8857,145.23,145.19,6.8873]
[1728352214088,6.8857,145.23,145.18,56.8879]
[1728352214381,6.8861,145.22,145.17,39.8189]
[1728352214595,6.8861,145.22,145.17,24.1084]
[1728352215774,6.8869,145.21,145.17,17.2204]
[1728352216171,0.12549,145.23,145.16,50.0]
[1728352216172,0.12549,145.22,145.16,50.0]
[1728352216493,6.8867,145.21,145.16,56.8886]
[1728352217080,7.01249,145.2,145.15,7.714118]
[1728352217470,6.8875,145.19,145.15,7.714118]
[1728352218166,6.8875,145.19,145.15,0.824818]
[1728352218366,0.12549,145.18,145.15,0.824818]
[1728352218596,7.01389,145.18,145.15,0.824818]
[1728352218775,6.8888,145.17,145.15,0.824818]
[1728352218970,0.12549,145.16,145.15,0.824818]
[1728352219473,7.13988,145.16,145.15,0.824818]
[1728352219692,8.86236498,145.16,145.15,0.824818]
[1728352220670,32.63924898,145.16,145.15,0.824818]
[1728352221694,52.63924898,145.16,145.15,0.824818]
[1728352222780,43.902374,145.15,145.12,23.72004674]
[1728352222997,50.918164,145.13,145.12,23.72004674]
[1728352225090,8.61283768,145.14,145.12,23.72004674]
[1728352225298,8.6127316,145.14,145.12,23.72004674]
[1728352225495,1.7227316,145.14,145.12,23.72004674]
[1728352225789,8.6127316,145.14,145.12,23.72004674]
[1728352226298,1.7227316,145.14,145.12,23.72004674]
[1728352226466,7.01579,145.13,145.12,23.72004674]
[1728352227074,7.14128,145.13,145.12,23.72004674]
[1728352238596,0.12549,145.13,145.12,23.72004674]
[1728352241203,8.86398383,145.13,145.12,23.72004674]
[1728352243183,52.64086783,145.13,145.12,16.59898766]
[1728352243479,43.776884,145.12,145.05,20.96213714]
[1728352243806,1.72318887,145.11,145.05,20.96213714]
[1728352243983,1.72318887,145.11,145.05,20.34285156]
[1728352245002,6.8924,145.09,145.05,20.34285156]
[1728352245187,0.12549,145.09,145.06,8.2721359]
[1728352245902,0.12549,145.09,145.06,6.8936]
[1728352246401,0.12549,145.09,145.07,7.15813617]
[1728352249908,7.01819,145.08,145.07,7.15813617]
[1728352250089,0.12549,145.07,145.04,24.13]
[1728352250289,6.8927,145.08,145.04,24.13]
[1728352250701,0.12549,145.07,145.04,24.13]
[1728352251707,20.0,145.12,145.06,17.2334]
[1728352251708,1.72332245,145.12,145.06,17.2334]
[1728352252005,34.4309,145.22,145.14,6.8898]
[1728352252006,1.72267065,145.17,145.14,6.8898]
[1728352252193,6.8874,145.2,145.15,8.26711711]
[1728352252194,8.60954638,145.2,145.15,8.26711711]
[1728352252395,6.8874,145.2,145.15,8.26711711]
[1728352253299,8.60961594,145.19,145.14,17.224]
[1728352253501,0.12549,145.18,145.14,24.1138]
[1728352253807,7.13918,145.18,145.14,17.224]
[1728352253993,0.12549,145.16,145.14,17.224]
[1728352254788,0.12549,145.16,145.13,6.89]
[1728352256811,1.84775456,145.16,145.11,17.2279]
[1728352256991,7.01449,145.16,145.12,6.8906]
[1728352257595,7.01399,145.17,145.13,6.8902]
[1728352257906,0.12549,145.17,145.13,6.8902]
[1728352258113,1.84776179,145.17,145.13,6.8902]
[1728352258912,8.73626179,145.17,145.13,6.8902]
[1728352260222,0.12549,145.15,145.11,24.1188]
[1728352260390,0.12549,145.15,145.11,17.2279]
[1728352260712,0.12549,145.15,145.12,6.8907]
[1728352260913,0.12549,145.16,145.12,6.8907]
[1728352261408,0.12549,145.17,145.14,6.8898]
[1728352261711,0.12549,145.17,145.14,8.26761092]
[1728352261894,0.12549,145.17,145.14,6.8898]
[1728352262098,7.01359,145.18,145.15,8.26702706]
[1728352262099,0.12549,145.18,145.15,8.26702706]
[1728352262420,7.13938,145.18,145.13,24.1154]
[1728352262594,0.12549,145.16,145.13,24.1154]
[1728352263512,1.84776339,145.16,145.13,17.2252]
[1728352263714,8.73666339,145.16,145.13,17.2252]
[1728352264016,6.8894,145.15,145.11,6.8911]
[1728352264220,0.12549,145.14,145.11,6.8911]
[1728352264910,1.72249329,145.21,145.12,111.0771]
[1728352265216,1.72249329,145.21,145.17,6.8883]
[1728352265398,1.72249329,145.21,145.12,56.6251]
[1728352265711,6.8879,145.19,145.14,6.8895]
[1728352265898,40.0883,145.24,145.14,6.8895]
[1728352265899,8.61022084,145.18,145.14,8.26727667]
[1728352266822,0.12549,145.17,145.14,8.26727667]
[1728352267002,0.12549,145.17,145.14,1.37777667]
[1728352267207,7.01409,145.17,145.13,47.2254]
[1728352267456,7.01489,145.15,145.1,17.2288]
[1728352267716,0.12549,145.13,145.1,24.1204]
[1728352267907,0.12549,145.13,145.1,17.2288]
[1728352268223,7.01589,145.13,145.1,17.2288]
[1728352268397,0.12549,145.13,145.1,17.2288]
[1728352268592,8.73861553,145.13,145.09,6.8918]
[1728352269318,8.73861553,145.13,145.08,16.6186]
[1728352269518,8.73861553,145.13,145.08,23.5112]
[1728352271001,8.73861553,145.13,145.08,16.6186]
[1728352271197,8.73861553,145.13,145.09,8.27032678]
[1728352271709,8.73861553,145.13,145.09,1.37822678]
[1728352271710,0.12549,145.13,145.09,1.37822678]
[1728352271912,0.25098,145.15,145.12,6.8908]
[1728352272214,8.61170088,145.16,145.09,17.23]
[1728352272419,8.61170088,145.16,145.11,6.8911]
[1728352273221,6.8895,145.15,145.11,6.8911]
[1728352273619,0.12549,145.14,145.11,6.8911]
[1728352274521,1.84799423,145.14,145.11,6.8911]
[1728352274812,1.84799423,145.14,145.09,17.23]
[1728352275019,1.84799423,145.14,145.1,6.8916]
[1728352275597,8.73799423,145.14,145.1,6.8916]
[1728352276097,0.12549,145.12,145.09,17.23]
[1728352276293,7.01669,145.12,145.06,17.2335]
[1728352276601,1.72290405,145.11,145.07,6.8929]
[1728352277503,0.12549,145.1,145.07,6.8929]
[1728352277696,0.12549,145.12,145.08,17.2315]
[1728352277911,0.12549,145.12,145.09,8.27016159]
[1728352278218,0.12549,145.12,145.09,8.27010555]
[1728352279500,0.12549,145.12,145.08,17.2315]
[1728352279726,7.01669,145.12,145.08,17.2315]
[1728352279944,0.12549,145.12,145.08,17.2315]
[1728352280104,6.8913,145.11,145.08,17.2315]
[1728352281723,0.12549,145.1,145.07,6.8928]
[1728352282923,1.84854449,145.1,145.07,6.8928]
[1728352283104,0.12549,145.1,145.07,6.8928]
[1728352285532,0.12549,145.12,145.08,8.27113996]
[1728352285829,1.84838565,145.12,145.08,8.27113996]
[1728352286211,1.84838565,145.12,145.08,6.8927]
[1728352286420,8.73918565,145.12,145.08,6.8927]
[1728352287511,7.01629,145.12,145.08,8.27099682]
[1728352287711,0.12549,145.1,145.08,6.8927]
[1728352287935,7.01629,145.12,145.08,8.27105303]
[1728352288435,0.25098,145.13,145.1,6.8916]
[1728352288618,0.12549,145.13,145.1,8.26975427]
[1728352290335,0.12549,145.13,145.1,6.8916]
[1728352290841,8.73848287,145.13,145.09,24.1224]
[1728352291014,8.73848287,145.13,145.09,17.2303]
[1728352291214,0.12549,145.11,145.09,17.2303]
[1728352292637,0.12549,145.11,145.08,6.8925]
[1728352293042,8.73984357,145.11,145.07,6.893]
[1728352294015,0.12549,145.09,145.06,17.2333]
[1728352295138,7.01779,145.09,145.06,17.2333]
[1728352295434,7.01779,145.09,145.04,21.9546]
[1728352295627,7.01779,145.09,145.04,25.83695725]
[1728352295937,0.12549,145.07,145.04,6.8945]
[1728352296730,0.12549,145.08,145.04,6.8945]
[1728352297839,0.12549,145.08,145.04,8.27316507]
[1728352298519,0.12549,145.08,145.04,6.8945]
[1728352298943,1.84882289,145.08,145.04,6.8945]
[1728352299342,0.12549,145.08,145.04,8.27316617]
[1728352299850,0.12549,145.08,145.04,1.37866617]
[1728352300050,1.72332908,145.11,145.06,6.8935]
[1728352300221,30.93805447,145.16,145.07,1.37847691]
[1728352300550,6.8904,145.13,145.09,6.8922]
[1728352300846,6.8904,145.13,145.08,6.8926]
[1728352300847,6.8912,145.12,145.08,6.8926]
[1728352301142,1.72295143,145.11,145.08,6.8926]
[1728352301623,0.12549,145.1,145.08,6.8926]
[1728352301819,6.8912,145.12,145.08,6.8926]
[1728352302024,0.12549,145.11,145.09,1.37831767]
[1728352302643,0.12549,145.12,145.09,1.37831767]
[1728352302823,0.12549,145.11,145.08,6.8926]
[1728352303430,0.12549,145.11,145.07,24.1256]
[1728352303626,7.01689,145.11,145.07,24.1256]
[1728352306643,6.8919,145.1,145.07,17.2326]
[1728352306846,0.12549,145.11,145.07,17.2326]
[1728352307549,7.01689,145.11,145.07,24.1257]
[1728352307750,1.72294922,145.1,145.04,20.0]
[1728352308052,1.72294922,145.1,145.06,6.8935]
[1728352308053,0.12549,145.09,145.06,6.8935]
[1728352308728,0.12549,145.09,145.05,10.78239709]
[1728352309353,0.12549,145.09,145.05,6.894]
[1728352309528,0.12549,145.09,145.05,10.78321434]
[1728352310435,1.84861993,145.09,145.05,10.78321434]
[1728352310751,7.01769,145.09,145.05,10.78321434]
[1728352311337,0.12549,145.09,145.06,6.8936]
[1728352311647,0.12549,145.11,145.07,1.37852032]
[1728352311949,0.12549,145.11,145.08,24.1237]
[1728352312333,6.8904,145.13,145.09,8.27055804]
[1728352312844,6.8904,145.13,145.09,1.37835804]
[1728352313735,0.12549,145.12,145.08,24.1237]
[1728352313944,7.01629,145.12,145.08,24.1237]
[1728352315547,7.01629,145.12,145.08,17.2311]
[1728352317356,22.76759529,145.13,145.07,6.893]
[1728352317527,0.12549,145.12,145.07,6.893]
[1728352318231,0.12549,145.12,145.08,3.8986055]
[1728352318437,0.12549,145.12,145.07,6.893]
[1728352318631,0.12549,145.12,145.08,3.898617]
[1728352318846,0.12549,145.12,145.07,6.893]
[1728352319049,6.8914,145.11,145.08,3.89858765]
[1728352319229,6.8914,145.11,145.07,6.893]
[1728352319428,6.8914,145.11,145.08,3.8990863]
[1728352319738,0.12549,145.1,145.07,6.893]
[1728352319934,0.12549,145.1,145.08,3.89960097]
[1728352320251,0.12549,145.1,145.06,6.8933]
[1728352320439,0.12549,145.1,145.07,5.27887612]
[1728352320662,0.12549,145.11,145.07,3.90047613]
[1728352320830,6.8918,145.1,145.06,6.8936]
[1728352321034,6.8918,145.1,145.07,3.90075342]
[1728352321223,0.25098,145.12,145.08,3.90079833]
[1728352321535,0.12549,145.1,145.07,8.27150648]
[1728352321857,0.12549,145.1,145.08,3.90077511]
[1728352322039,0.12549,145.1,145.07,8.27150648]
[1728352322239,0.12549,145.1,145.08,3.90159382]
[1728352322448,0.12549,145.1,145.07,8.27150648]
[1728352322747,0.12549,145.1,145.08,3.90221822]
[1728352322950,0.12549,145.1,145.07,8.27150648]
[1728352323333,0.12549,145.1,145.08,3.90294118]
[1728352323535,0.12549,145.1,145.07,6.8931]
[1728352323768,0.12549,145.1,145.08,3.90292485]
[1728352324053,0.12549,145.1,145.07,8.27149664]
[1728352324247,0.12549,145.1,145.08,3.90256003]
[1728352324455,6.8908,145.12,145.09,1.3782725]
[1728352324655,6.8908,145.12,145.08,6.8927]
[1728352325661,7.01679,145.11,145.07,24.1257]
[1728352325847,7.01679,145.11,145.08,3.90204596]
[1728352326034,7.01679,145.11,145.07,24.1257]
[1728352326230,7.01679,145.11,145.08,3.90213354]
[1728352326437,7.01679,145.11,145.07,24.1257]
[1728352326843,7.01679,145.11,145.08,3.90211731]
[1728352327255,7.01679,145.11,145.07,24.1257]
[1728352327438,7.01679,145.11,145.08,3.90218753]
[1728352327639,7.01679,145.11,145.07,24.1257]
[1728352327852,7.01679,145.11,145.08,3.90218753]
[1728352328045,7.01679,145.11,145.07,24.1257]
[1728352328248,7.01679,145.11,145.08,3.90218445]
[1728352328560,7.01679,145.11,145.07,24.1257]
[1728352328735,7.01679,145.11,145.08,3.90234564]
[1728352328935,7.01679,145.11,145.07,24.1257]
[1728352329236,7.01679,145.11,145.08,3.90234564]
[1728352329432,7.01679,145.11,145.07,24.1257]
[1728352329649,7.01679,145.11,145.08,3.90226715]
[1728352329847,7.01679,145.11,145.07,24.1257]
[1728352330163,7.01679,145.11,145.08,3.90232921]
[1728352330336,7.01679,145.11,145.07,24.1257]
[1728352330636,7.01679,145.11,145.08,3.90244572]
[1728352330839,7.01679,145.11,145.07,24.1257]
[1728352331041,7.01679,145.11,145.08,3.9026549]
[1728352331246,7.01679,145.11,145.07,24.1257]
[1728352331445,7.01679,145.11,145.08,3.90258657]
[1728352331741,7.01679,145.11,145.07,24.1257]
[1728352331932,7.01679,145.11,145.08,3.90265441]
[1728352332135,7.01679,145.11,145.07,24.1257]
[1728352332333,7.01679,145.11,145.08,3.90280406]
[1728352332564,7.01679,145.11,145.07,24.1257]
[1728352332749,7.01679,145.11,145.08,3.90248588]
[1728352332957,7.01679,145.11,145.07,24.1257]
[1728352333345,7.01679,145.11,145.08,3.90248588]
[1728352333559,7.01679,145.11,145.07,24.1257]
[1728352333851,7.01679,145.11,145.08,3.90254964]
[1728352334059,7.01679,145.11,145.07,24.1257]
[1728352334273,7.01679,145.11,145.08,3.90254309]
[1728352334457,6.8918,145.1,145.06,6.8936]
[1728352334771,0.12549,145.09,145.07,3.90269431]
[1728352334990,0.12549,145.09,145.05,6.8938]
[1728352335265,0.12549,145.09,145.06,3.90314043]
[1728352335447,0.12549,145.09,145.07,3.90314043]
[1728352335646,0.12549,145.09,145.05,6.8938]
[1728352335847,0.12549,145.09,145.06,3.90361887]
[1728352336046,0.12549,145.09,145.07,3.90361887]
[1728352336369,0.12549,145.09,145.05,6.8938]
[1728352336960,7.01869,145.07,145.06,3.90415463]
[1728352337168,7.01919,145.06,145.02,6.8955]
[1728352337375,7.01919,145.06,145.03,33.90496028]
[1728352337663,7.01919,145.06,145.04,3.90496028]
[1728352337864,7.14458,145.06,145.0,0.824818]
[1728352338074,6.8948,145.04,145.0,0.824818]
[1728352338243,0.12549,145.04,145.01,30.0]
[1728352338647,0.12549,145.04,145.01,6.896]
[1728352339247,6.8942,145.05,145.01,8.2749696]
[1728352339569,6.8942,145.05,145.01,6.896]
[1728352340065,0.12549,145.04,145.0,24.962018]
[1728352340445,6.8947,145.04,145.0,24.962018]
[1728352341871,7.01969,145.05,145.0,24.962018]
[1728352342050,20.0,145.08,145.02,17.2383]
[1728352342257,6.8928,145.08,145.04,6.8946]
[1728352342571,6.4863,145.1,145.05,1.37872676]
[1728352342869,6.8918,145.1,145.06,6.8935]
[1728352343883,6.8918,145.1,145.07,1.3784857]
[1728352344173,22.0398,145.15,145.1,6.8914]
[1728352344362,6.8905,145.13,145.08,17.231]
[1728352344546,6.8908,145.12,145.08,24.1236]
[1728352344868,6.8918,145.1,145.06,6.8936]
[1728352345167,15.1504,145.15,145.05,17.2349]
[1728352345168,6.8926,145.09,145.05,17.2349]
[1728352345364,6.8926,145.09,145.05,18.61351059]
[1728352345557,15.1504,145.15,145.05,18.61351059]
[1728352345558,43.776884,145.14,145.06,6.8933]
[1728352345770,0.12549,145.1,145.07,8.27150181]
[1728352346347,0.12549,145.1,145.07,1.37840181]
[1728352346565,7.01729,145.1,145.06,6.8936]
[1728352346765,7.01729,145.1,145.05,17.2349]
[1728352346966,7.01729,145.1,145.05,24.1289]
[1728352347169,6.8923,145.09,145.05,24.1289]
[1728352347354,7.01739,145.1,145.05,25.5074401]
[1728352347548,7.01739,145.1,145.05,24.1289]
[1728352347853,0.12549,145.1,145.05,17.2349]
[1728352348057,6.8925,145.09,145.05,17.2349]